Workbook

Sheet Ark1
H1: Handicap-idræt x2
A2: BBC 58 | B2: 84 | C2: 34 | D2: 73 | E2: =B2*4 -> 336 | F2: =C2*2 -> 68 | G2: =D2*1 -> 73 | I2: =SUM(E2:G2) -> 477 | J2: =I2/20 -> 23.85 | K2: =J2*100/$J$29 -> 6.367641169 | L2: =K2*$A$30/100 -> 31.07408891 | M2: =L2 -> 31.07408891 | N2: 34 | O2: =SUM(M2-N2) -> -2.925911093 | P2: =A2 -> BBC 58
A3: BHC | B3: 31 | C3: 0 | D3: 25 | E3: =B3*4 -> 124 | F3: =C3*2 -> 0 | G3: =D3*1 -> 25 | I3: 149 | J3: 7.45 | K3: =J3*100/$J$29 -> 1.989053531 | L3: =K3*$A$30/100 -> 9.706581231 | M3: =L3 -> 9.706581231 | N3: 12 | O3: -2.293418769 | P3: =A3 -> BHC
A4: BHIC | B4: 0 | C4: 2 | D4: 19 | E4: =B4*4 -> 0 | F4: 4 | H4: =D4*2 -> 38 | I4: =SUM(E4:H4) -> 42 | J4: 2.1 | K4: =J4*100/$J$29 -> 0.5606728074 | L4: =K4*$A$30/100 -> 2.7360833 | M4: 2.7360833 | N4: 3 | O4: =SUM(M4-N4) -> -0.2639167 | P4: BHIC
A5: BMS | B5: 237 | C5: 7 | D5: 115 | E5: 948 | F5: 14 | G5: =D5*1 -> 115 | I5: 1077 | J5: 53.85 | K5: =J5*100/$J$29 -> 14.3772527 | L5: =K5*$A$30/100 -> 70.16099319 | M5: 70.16099319 | N5: 68 | O5: 2.160993192 | P5: BMS
A6: EG | B6: 7 | C6: 38 | D6: 49 | E6: 28 | F6: 76 | G6: 49 | I6: 153 | J6: 7.65 | K6: =J6*100/$J$29 -> 2.042450941 | L6: =K6*$A$30/100 -> 9.967160593 | M6: 9.967160593 | N6: 11 | O6: -1.032839407 | P6: EG
A7: GIF BADM. | B7: 20 | C7: 40 | D7: 31 | E7: 80 | F7: 80 | G7: 31 | I7: 191 | J7: 9.55 | K7: =J7*100/$J$29 -> 2.549726338 | L7: =K7*$A$30/100 -> 12.44266453 | M7: 12.44266453 | N7: 13 | O7: -0.5573354692 | P7: GIF BADM.
A8: JBC | B8: 0 | C8: 19 | D8: 25 | E8: 0 | F8: 38 | G8: 25 | I8: 63 | J8: 3.15 | K8: =J8*100/$J$29 -> 0.8410092111 | L8: =K8*$A$30/100 -> 4.10412495 | M8: 4.10412495 | N8: 7 | O8: -2.89587505 | P8: =A8 -> JBC
A9: JBBK | B9: 118 | C9: 0 | D9: 19 | E9: 472 | F9: 0 | G9: 19 | I9: 491 | J9: 24.55 | K9: =J9*100/$J$29 -> 6.554532105 | L9: =K9*$A$30/100 -> 31.98611667 | M9: 31.98611667 | N9: 37 | O9: -5.013883327 | P9: JBBK
A10: MIF | B10: 342 | C10: 28 | D10: 33 | E10: 1368 | F10: 56 | G10: 33 | I10: 1457 | J10: =I10/40 -> 36.425 | K10: =J10*100/$J$29 -> 9.725003337 | L10: =K10*$A$30/100 -> 47.45801629 | M10: 47.45801629 | N10: 46 | O10: 1.458016286 | P10: MIF
A11: MBC | B11: 116 | C11: 53 | D11: 168 | E11: 464 | F11: 106 | G11: 168 | I11: 738 | J11: =I11/20 -> 36.9 | K11: =J11*100/$J$29 -> 9.851822187 | L11: =K11*$A$30/100 -> 48.07689227 | M11: =L11 -> 48.07689227 | N11: 49 | O11: -0.9231077293 | P11: MBC
A12: ROVK | B12: 35 | C12: 9 | D12: 29 | E12: 140 | F12: 18 | G12: 29 | I12: 187 | J12: 9.35 | K12: =J12*100/$J$29 -> 2.496328928 | L12: =K12*$A$30/100 -> 12.18208517 | M12: 12.18208517 | N12: 10 | O12: 2.182085169 | P12: ROVK
A13: Ball. K. Rugb. | B13: 4 | C13: 1 | D13: 20 | E13: 16 | F13: 2 | H13: =D13*2 -> 40 | I13: =SUM(E13:H13) -> 58 | J13: 2.9 | K13: =J13*100/$J$29 -> 0.7742624483 | L13: =K13*$A$30/100 -> 3.778400748 | M13: 3.778400748 | N13: 4 | O13: -0.2215992524 | P13: Ball. K. Rugb.
A14: SIF BADM. | B14: 108 | C14: 39 | D14: 89 | E14: 432 | F14: 78 | G14: 89 | I14: 599 | J14: 29.95 | K14: =J14*100/$J$29 -> 7.996262181 | L14: =K14*$A$30/100 -> 39.02175944 | M14: 39.02175944 | N14: 35 | O14: 4.021759445 | P14: SIF BADM.
A15: SIF HÅNDB. | B15: 113 | C15: 0 | D15: 42 | E15: 452 | F15: 0 | G15: 42 | I15: 494 | J15: 24.7 | K15: =J15*100/$J$29 -> 6.594580163 | L15: =K15*$A$30/100 -> 32.18155119 | M15: 32.18155119 | N15: 27 | O15: 5.181551195 | P15: SIF HÅNDB.
A16: BAK | B16: 99 | C16: 48 | D16: 41 | E16: 396 | F16: 96 | G16: 41 | I16: 533 | J16: =I16/40 -> 13.325 | K16: =J16*100/$J$29 -> 3.557602456 | L16: =K16*$A$30/100 -> 17.36109999 | M16: 17.36109999 | N16: 16 | O16: 1.361099987 | P16: BAK
A17: Tamiler | B17: 0 | C17: 0 | D17: 0 | E17: 0 | F17: 0 | G17: 0 | I17: 0 | J17: 0 | K17: =J17*100/$J$29 -> 0 | L17: =K17*$A$30/100 -> 0 | M17: 0 | N17: 12 | O17: -12 | P17: Tamiler
A18: BSF handicap | B18: 6 | C18: 0 | D18: 5 | E18: 24 | F18: 0 | G18: 5 | H18: =D18*2 -> 10 | I18: 29 | J18: 1.45 | K18: =J18*100/$J$29 -> 0.3871312241 | L18: =K18*$A$30/100 -> 1.889200374 | M18: 1.889200374 | N18: 3 | O18: -1.110799626 | P18: BSF handicap
A19: SIF G | B19: 70 | D19: 0 | E19: 280 | F19: 0 | G19: 0 | I19: =SUM(E19:G19) -> 280 | J19: =I19/40 -> 7 | K19: =J19*100/$J$29 -> 1.868909358 | L19: =K19*$A$30/100 -> 9.120277667 | M19: 9.120277667 | N19: 8 | O19: 1.120277667 | P19: SIF G
A20: I alt indendørs | B20: =SUM(B2:B19) -> 1390 | C20: 318 | D20: 783 | E20: 5560 | F20: 636 | G20: 744 | H20: 88 | I20: 7018 | J20: 294.15 | K20: 78.53424109 | L20: 383.2470965 | M20: =SUM(M2:M19) -> 383.2470965 | N20: 395 | O20: -11.75290348 | P20: I alt indendørs
M21: 0 | N21: =#REF! -> 
A22: Udendørs | B22: U/15 ÅR | M22: 0 | N22: 0 | P22: Udendørs
A23: BBSK | B23: 16 | E23: =B23*4 -> 64 | I23: =E23 -> 64 | J23: =I23/40 -> 1.6 | K23: =J23*100/$J$29 -> 0.4271792818 | L23: =K23*$A$30/100 -> 2.084634895 | M23: 2.084634895 | N23: 2 | O23: =SUM(M23-N23) -> 0.08463489521 | P23: BBSK
A24: BFC LUNDEG. | B24: 145 | E24: =B24*4 -> 580 | I24: =E24 -> 580 | J24: 14.5 | K24: =J24*100/$J$29 -> 3.871312241 | L24: =K24*$A$30/100 -> 18.89200374 | M24: 18.89200374 | N24: 11 | O24: 7.892003738 | P24: BFC LUNDEG.
A25: BSF | B25: 372 | E25: 1488 | I25: 1488 | J25: 37.2 | K25: =J25*100/$J$29 -> 9.931918302 | L25: =K25*$A$30/100 -> 48.46776131 | M25: 48.46776131 | N25: 52 | O25: -3.532238686 | P25: BSF
A26: GIF | B26: 25 | E26: =B26*4 -> 100 | I26: =E26 -> 100 | J26: =I26/40 -> 2.5 | K26: =J26*100/$J$29 -> 0.6674676278 | L26: =K26*$A$30/100 -> 3.257242024 | M26: 3.257242024 | N26: 0 | O26: 3.257242024 | P26: GIF
A27: MB | B27: 246 | E27: 984 | I27: 984 | J27: 24.6 | K27: =J27*100/$J$29 -> 6.567881458 | L27: =K27*$A$30/100 -> 32.05126151 | M27: 32.05126151 | N27: 29 | O27: 3.051261514 | P27: MB
A28: I alt udendørs | B28: =SUM(B23:B27) -> 804 | E28: =SUM(E23:E27) -> 3216 | I28: =SUM(I23:I27) -> 3216 | J28: =SUM(J23:J27) -> 80.4 | K28: =SUM(K23:K27) -> 21.46575891 | L28: =SUM(L23:L27) -> 104.7529035 | M28: =SUM(M21:M27) -> 104.7529035 | N28: =SUM(N23:N27) -> 94 | O28: =SUM(O23:O27) -> 10.75290348 | P28: I alt udendørs
A29: TOTAL | B29: =SUM(B20+B28) -> 2194 | C29: 318 | D29: 783 | E29: 8776 | F29: 636 | G29: 744 | H29: 88 | I29: 10234 | J29: 374.55 | K29: 100 | L29: 488 | M29: 488 | N29: 489 | O29: 0 | P29: TOTAL
A30: 488

Sheet Ark2

Sheet Ark3

Sheet Ark4

Sheet Ark5

Sheet Ark6

Sheet Ark7

Sheet Ark8

Sheet Ark9

Sheet Ark10

Sheet Ark11

Sheet Ark12

Sheet Ark13

Sheet Ark14

Sheet Ark15

Sheet Ark16
